[Event "WSTCC-50 2024"]
[Site "Krakow"]
[Date "2024.07.06"]
[Round "5.6"]
[White "Emms, John M"]
[Black "Shabalov, Alexander"]
[Result "1/2-1/2"]
[ECO "C47"]
[WhiteElo "2428"]
[BlackElo "2467"]
[Annotator "TA"]
[PlyCount "81"]
[EventDate "2024.07.01"]
[EventType "team-tourn"]
[EventCountry "POL"]
[SourceTitle "playchess.com"]
[Source "ChessBase"]
[SourceQuality "1"]
[TimeControl "40/5400+30:1800+30"]

{[%evp 14,81,0,0,0,0,19,13,17,4,9,1,7,8,14,19,11,12,12,10,8,0,0,0,12,11,13,12,9,11,7,23,12,10,14,6,38,16,13,6,19,0,0,0,22,0,0,0,8,8,9,8,29,14,22,13,17,8,8,0,0,0,0,0,0,0,0,-4,0,-5]} 1. e4 {[%emt 0:00:15]} e5 {[%emt 0:00:19]} 2. Nf3 {[%emt 0:00:43]} Nc6 {[%emt 0:00:07]} 3. Nc3 {[%emt 0:01:01]} Nf6 {[%emt 0:05:31]} 4. d4 {[%emt 0:00:12]} exd4 {[%emt 0:03:49]} 5. Nxd4 {[%emt 0:00:07]} Bb4 {[%emt 0:03:42]} 6. Nxc6 {[%emt 0:00:25]} bxc6 {[%emt 0:00:07]} 7. Bd3 {[%emt 0:00:10]} d5 {[%emt 0:02:03]} 8. exd5 {[%emt 0:00:25]} O-O {[%emt 0:00:15]} 9. O-O {[%emt 0:00:08]} Bg4 {[%emt 0:00:09]} 10. f3 {[%emt 0:05:19]} Bh5 {[%emt 0:01:24]} 11. dxc6 {[%emt 0:00:20]} Qd4+ $1 {[%emt 0:00:16]} 12. Kh1 {[%emt 0:00:24][%cal Od3h7] [#] Hoping for Bxh7+!} Bxc3 {[%emt 0:00:13]} 13. bxc3 {[%emt 0:00:07]} Qxc3 {[%emt 0:00:06]} 14. Bf4 {[%emt 0:02:07]} Qxc6 {[%emt 0:00:46]} 15. Qe2 {[%emt 0:01:20]} Nd5 {[%emt 0:04:44]} 16. Bg3 {[%emt 0:09:03]} Bg6 {[%emt 0:07:50]} 17. Bxg6 {[%emt 0:41:09]} hxg6 {[%emt 0:00:56]} 18. c4 {[%emt 0:01:34]} Nb6 {[%emt 0:07:19]} 19. Rac1 {[%emt 0:01:52]} Rfe8 {[%emt 0:06:21]} 20. Qf2 {[%emt 0:05:46]} Re7 {[%emt 0:03:15]} (20... Nxc4 $2 21. Qd4 $18) 21. Rfe1 {[%emt 0:02:43]} Rae8 {[%emt 0:10:13][%cal Ba8e8,Be8e7,Be7d7][%mdl 32]} 22. Rxe7 Rxe7 {[%emt 0:00:01]} 23. h3 {[%emt 0:02:28]} a6 {[%emt 0:07:57]} 24. Qd2 {[%emt 0:05:06]} Rd7 {[%emt 0:08:00]} 25. Qe3 {[%emt 0:03:05]} Kh7 {[%emt 0:00:42]} (25... Nxc4 $2 {loses.} 26. Qc3 (26. Qf4 Qc5 $11) 26... Qe6 27. Qxc4 $18) 26. Kh2 {[%emt 0:01:22]} Nc8 {[%emt 0:01:58][%cal Bb6c8,Bc8e7,Be7c6][%mdl 32]} (26... Nxc4 $2 {perishes.} 27. Qf4 $18) 27. c5 {[%emt 0:07:31]} Ne7 {[%emt 0:02:04]} 28. Qe4 {[%emt 0:00:59]} f6 {[%emt 0:09:19]} 29. Qxc6 {[%emt 0:04:05]} Nxc6 $11 {[%emt 0:00:06][%mdl 4096] Endgame. KRB-KRN} 30. Rb1 {[%emt 0:00:10]} Rd5 {[%emt 0:04:49]} 31. Rb7 {[%emt 0:01:39]} Rxc5 {[%emt 0:01:00]} 32. Rxc7 {[%emt 0:00:04]} Rc4 {[%emt 0:01:33]} 33. Bd6 {[%emt 0:00:51]} Kg8 {[%emt 0:00:13] Prevents Bf8. The position is equal.} 34. Kg3 {[%emt 0:00:48]} g5 {[%emt 0:02:14]} 35. Kf2 {[%emt 0:02:23]} Na5 $1 {[%emt 0:00:19]} 36. Ke2 {[%emt 0:01:06]} Ra4 {[%emt 0:00:24]} 37. Rc2 {[%emt 0:00:33]} Nc4 {[%emt 0:02:44]} 38. Bc5 {[%emt 0:00:38]} Kf7 {[%emt 0:02:15]} 39. Kd3 {[%emt 0:01:17]} Ne5+ {[%emt 0:00:28]} 40. Ke3 {[%emt 0:00:30]} Ke6 {[%emt 0:00:31]} 41. Bf8 {[%emt 0:10:32] An interesting draw.   Weighted Error Value: White=0.05 (flawless) /Black=0.05 (flawless) .  Inaccurate:     	---       	Black=1      OK:         	White=7     	Black=13     Best:        	White=1     	Black=1      Strong:       	---       	Black=2} 1/2-1/2

[Event "WSTCC-50 2024"]
[Site "Krakow"]
[Date "2024.07.06"]
[Round "5.6"]
[White "Becker, Rogerio Sperb"]
[Black "McHugh, Kevin"]
[Result "1-0"]
[ECO "A15"]
[WhiteElo "2053"]
[BlackElo "1938"]
[Annotator "RC"]
[PlyCount "106"]
[EventDate "2024.07.01"]
[EventType "team-tourn"]
[EventCountry "POL"]
[SourceTitle "playchess.com"]
[Source "ChessBase"]
[SourceQuality "1"]
[TimeControl "40/5400+30:1800+30"]

1. c4 {[%emt 0:03:12]} Nf6 {[%emt 0:00:06]} 2. g3 {[%emt 0:00:44]} g6 {[%emt 0:00:16]} 3. Bg2 {[%emt 0:00:13]} d5 {[%emt 0:00:10]} 4. cxd5 {[%emt 0:00:45]} Nxd5 {[%emt 0:00:10]} 5. Qb3 {[%emt 0:01:10]} Nb6 {[%emt 0:00:12]} 6. Qc3 {[%emt 0:01:00]} Rg8 {[%emt 0:02:08]} 7. Nf3 {[%emt 0:06:18]} Bg7 {[%emt 0:00:52]} 8. d4 {[%emt 0:05:07]} Nc6 {[%emt 0:01:03]} 9. e3 {[%emt 0:00:35]} Be6 {[%emt 0:05:19]} 10. Nbd2 {[%emt 0:06:26]} Qd7 {[%emt 0:01:41]} 11. Ne4 {[%emt 0:01:23]} Nd8 {[%emt 0:11:20]} 12. Nc5 {[%emt 0:02:41]} Qc8 {[%emt 0:07:43]} 13. Ng5 {[%emt 0:14:54]} c6 {[%emt 0:01:31]} 14. Ngxe6 {[%emt 0:01:16]} fxe6 {[%emt 0:01:48]} 15. O-O {[%emt 0:01:22]} Nd7 {[%emt 0:03:11]} 16. Bd2 {[%emt 0:05:39]} Nxc5 {[%emt 0:01:26]} 17. Qxc5 {[%emt 0:00:10]} Qc7 {[%emt 0:03:06]} 18. Rac1 {[%emt 0:05:32]} Qd6 {[%emt 0:00:49]} 19. Qc4 {[%emt 0:00:18]} Rf8 {[%emt 0:04:41]} 20. b4 {[%emt 0:01:52]} Qd7 {[%emt 0:03:41]} 21. Rfd1 {[%emt 0:01:01]} Kf7 {[%emt 0:02:30]} 22. a4 {[%emt 0:04:50]} a6 {[%emt 0:02:11]} 23. Be1 {[%emt 0:04:57]} Kg8 {[%emt 0:01:53]} 24. e4 {[%emt 0:01:14]} Kh8 {[%emt 0:03:50]} 25. h4 {[%emt 0:00:29]} Nf7 {[%emt 0:03:18]} 26. Bh3 {[%emt 0:04:06]} Nd8 {[%emt 0:02:25]} 27. Qb3 {[%emt 0:05:23]} Qe8 {[%emt 0:02:16]} 28. Bxe6 {[%emt 0:01:05]} Nxe6 {[%emt 0:00:25]} 29. Qxe6 {[%emt 0:00:10]} Rd8 {[%emt 0:00:52]} 30. Qc4 {[%emt 0:01:47]} Qd7 {[%emt 0:02:53]} 31. Qe2 {[%emt 0:05:47]} Qe6 {[%emt 0:03:47]} 32. Bc3 {[%emt 0:01:16]} Qb3 {[%emt 0:01:47]} 33. a5 {[%emt 0:00:50]} Qe6 {[%emt 0:01:07]} 34. Rd2 {[%emt 0:02:36]} Rf7 {[%emt 0:03:15]} 35. Rcd1 {[%emt 0:01:16]} Qb3 {[%emt 0:01:05]} 36. Rd3 {[%emt 0:00:53]} Qc4 {[%emt 0:02:06]} 37. Qe3 {[%emt 0:01:48]} Rff8 {[%emt 0:01:42]} 38. Be1 {[%emt 0:01:56]} Rd7 {[%emt 0:01:29]} 39. Bc3 {[%emt 0:02:41]} Rfd8 {[%emt 0:00:59]} 40. e5 {[%emt 0:00:29]} e6 {[%emt 0:00:26]} 41. f4 {[%emt 0:30:33]} Bf8 {[%emt 0:30:49]} 42. Qe1 {[%emt 0:03:09]} Rd5 {[%emt 0:00:50]} 43. h5 {[%emt 0:02:11]} Rb5 {[%emt 0:01:01]} 44. hxg6 {[%emt 0:00:08]} hxg6 {[%emt 0:00:07]} 45. g4 {[%emt 0:00:13]} Be7 {[%emt 0:02:17]} 46. Rh3+ {[%emt 0:00:59]} Kg7 {[%emt 0:00:35]} 47. f5 {[%emt 0:00:33]} gxf5 {[%emt 0:00:59]} 48. gxf5 {[%emt 0:00:32]} exf5 {[%emt 0:00:18]} 49. Rd2 {[%emt 0:00:00]} Bxb4 {[%emt 0:00:00]} 50. Qg3+ {[%emt 0:00:00]} Kf7 {[%emt 0:00:00]} 51. Rh7+ {[%emt 0:00:00]} Ke8 {[%emt 0:00:00]} 52. Qg6+ {[%emt 0:00:00]} Kf8 {[%emt 0:00:00]} 53. Qg7+ {[%emt 0:00:00]} Ke8 {[%emt 0:00:00]} 1-0

[Event "WSTCC-50 2024"]
[Site "Krakow"]
[Date "2024.07.06"]
[Round "5.6"]
[White "Burrows, Martin P"]
[Black "Grawe, Christian"]
[Result "0-1"]
[ECO "B12"]
[WhiteElo "2019"]
[BlackElo "2232"]
[Annotator "RC"]
[PlyCount "112"]
[EventDate "2024.07.01"]
[EventType "team-tourn"]
[EventCountry "POL"]
[SourceTitle "playchess.com"]
[Source "ChessBase"]
[SourceQuality "1"]
[TimeControl "40/5400+30:1800+30"]

1. e4 {[%emt 0:00:04]} c6 {[%emt 0:00:13]} 2. d4 {[%emt 0:00:13]} d5 {[%emt 0:00:09]} 3. e5 {[%emt 0:00:06]} Bf5 {[%emt 0:00:28]} 4. Nf3 {[%emt 0:00:08]} e6 {[%emt 0:00:12]} 5. Be2 {[%emt 0:00:07]} c5 {[%emt 0:00:28]} 6. Be3 {[%emt 0:00:25]} Qb6 {[%emt 0:00:49]} 7. Nc3 {[%emt 0:00:53]} Nc6 {[%emt 0:00:26]} 8. dxc5 {[%emt 0:00:39]} Bxc5 {[%emt 0:00:48]} 9. Bxc5 {[%emt 0:00:41]} Qxc5 {[%emt 0:00:04]} 10. Nb5 {[%emt 0:00:43]} Kf8 {[%emt 0:02:41]} 11. Nbd4 {[%emt 0:00:45]} Bg6 {[%emt 0:05:48]} 12. O-O {[%emt 0:06:41]} Nge7 {[%emt 0:00:27]} 13. Rc1 {[%emt 0:05:49]} Qb6 {[%emt 0:28:00]} 14. Re1 {[%emt 0:18:58]} a6 {[%emt 0:03:19]} 15. Qd2 {[%emt 0:08:38]} h6 {[%emt 0:12:19]} 16. Nxc6 {[%emt 0:02:09]} Nxc6 {[%emt 0:01:20]} 17. c4 {[%emt 0:00:55]} Rd8 {[%emt 0:04:44]} 18. cxd5 {[%emt 0:01:35]} Rxd5 {[%emt 0:00:09]} 19. Qf4 {[%emt 0:00:46]} Kg8 {[%emt 0:03:43]} 20. Bc4 {[%emt 0:04:43]} Rd8 {[%emt 0:02:05]} 21. Nh4 {[%emt 0:09:05]} Bd3 {[%emt 0:04:39]} 22. Bxd3 {[%emt 0:08:22]} Rxd3 {[%emt 0:00:03]} 23. Nf3 {[%emt 0:00:36]} g5 {[%emt 0:08:08]} 24. Qe4 {[%emt 0:02:55]} Qd8 {[%emt 0:00:46]} 25. h4 {[%emt 0:06:25]} gxh4 {[%emt 0:01:20]} 26. Qg4+ {[%emt 0:00:40]} Kf8 {[%emt 0:00:35]} 27. Qh5 {[%emt 0:00:22]} Ke8 {[%emt 0:04:51]} 28. Kh2 {[%emt 0:02:55]} Rg8 {[%emt 0:04:51]} 29. Rc4 {[%emt 0:02:52]} h3 {[%emt 0:03:28]} 30. Qxh3 {[%emt 0:01:21]} Qd5 {[%emt 0:00:35]} 31. Rg4 {[%emt 0:02:06]} Rxg4 {[%emt 0:01:32]} 32. Qxg4 {[%emt 0:00:02]} Nd4 {[%emt 0:01:54]} 33. Nxd4 {[%emt 0:01:47]} Qxd4 {[%emt 0:00:36]} 34. Re4 {[%emt 0:04:59]} Qxb2 {[%emt 0:03:00]} 35. Qg8+ {[%emt 0:03:31]} Ke7 {[%emt 0:00:02]} 36. Rf4 {[%emt 0:00:28]} Qxe5 {[%emt 0:00:28]} 37. Qxf7+ {[%emt 0:00:09]} Kd6 {[%emt 0:02:17]} 38. g3 {[%emt 0:00:26]} Rd4 {[%emt 0:01:07]} 39. Qf8+ {[%emt 0:03:36]} Kc7 {[%emt 0:00:21]} 40. Rf3 {[%emt 0:02:18]} Qh5+ {[%emt 0:00:39]} 41. Kg2 {[%emt 0:30:27]} Kb6 {[%emt 0:14:38]} 42. Qb8 {[%emt 0:00:00]} Qd5 {[%emt 0:00:43]} 43. Qf8 {[%emt 0:00:00]} Rd3 {[%emt 0:02:29]} 44. g4 {[%emt 0:00:00]} Rxf3 {[%emt 0:00:29]} 45. Qxf3 {[%emt 0:00:00]} Kc5 {[%emt 0:00:20]} 46. Kg3 {[%emt 0:00:00]} Qxf3+ {[%emt 0:00:08]} 47. Kxf3 {[%emt 0:00:00]} b5 {[%emt 0:00:14]} 48. Ke4 {[%emt 0:00:00]} a5 {[%emt 0:02:24]} 49. f4 {[%emt 0:00:00]} b4 {[%emt 0:01:00]} 50. Ke5 {[%emt 0:00:00]} a4 {[%emt 0:00:09]} 51. f5 {[%emt 0:00:00]} exf5 {[%emt 0:00:35]} 52. gxf5 {[%emt 0:00:00]} b3 {[%emt 0:00:56]} 53. axb3 {[%emt 0:00:00]} a3 {[%emt 0:00:15]} 54. f6 {[%emt 0:00:00]} a2 {[%emt 0:00:07]} 55. Ke6 {[%emt 0:00:00]} a1=Q {[%emt 0:00:15]} 56. f7 {[%emt 0:00:00]} Qg7 {[%emt 0:00:59]} 0-1

[Event "WSTCC-50 2024"]
[Site "Krakow"]
[Date "2024.07.06"]
[Round "5.7"]
[White "Khachiyan, Melikset"]
[Black "Flear, Glenn C"]
[Result "1-0"]
[ECO "C50"]
[WhiteElo "2435"]
[BlackElo "2390"]
[Annotator "TA"]
[PlyCount "77"]
[EventDate "2024.07.01"]
[EventType "team-tourn"]
[EventCountry "POL"]
[SourceTitle "playchess.com"]
[Source "ChessBase"]
[SourceQuality "1"]
[TimeControl "40/5400+30:1800+30"]

{[%evp 18,77,29,4,19,0,4,-3,0,0,20,18,28,25,47,31,35,33,38,31,35,35,45,19,20,29,56,53,42,62,88,87,87,88,97,95,85,98,88,90,91,85,132,141,152,150,154,123,177,184,193,214,180,186,259,242,333,329,395,390,425,420]} 1. e4 {[%emt 0:00:04]} e5 {[%emt 0:00:10]} 2. Nf3 {[%emt 0:00:20]} Nc6 {[%emt 0:00:10]} 3. Bc4 {[%emt 0:00:04]} Nf6 {[%emt 0:01:44]} 4. d3 {[%emt 0:00:06]} Bc5 {[%emt 0:01:34]} 5. O-O {[%emt 0:00:17]} d6 {[%emt 0:01:33]} 6. c3 {[%emt 0:00:22]} a6 {[%emt 0:00:22]} 7. Bb3 {[%emt 0:01:49]} h6 {[%emt 0:01:36]} 8. Nbd2 {[%emt 0:00:20]} O-O {[%emt 0:04:30]} 9. h3 {[%emt 0:06:29]} Be6 {[%emt 0:05:04]} 10. Re1 {[%emt 0:01:08]} Re8 {[%emt 0:03:42]} 11. Nf1 {[%emt 0:07:00]} d5 {[%emt 0:13:11]} 12. Qe2 {[%emt 0:05:30]} dxe4 {[%emt 0:09:39] The position is equal.} 13. dxe4 {[%emt 0:00:08]} Bxb3 {[%emt 0:07:30]} 14. axb3 {[%emt 0:00:09]} Qe7 {[%emt 0:00:32]} 15. b4 {[%emt 0:01:28]} Bb6 {[%emt 0:02:49]} 16. Be3 {[%emt 0:11:58]} Bxe3 {[%emt 0:01:12]} 17. Nxe3 {[%emt 0:00:06]} Qe6 {[%emt 0:00:27] Against Nd5} (17... Nxe4 $2 18. Nd5 Qd7 19. Qxe4 $18) 18. Qc4 {[%emt 0:01:42]} Qxc4 {[%emt 0:01:38]} 19. Nxc4 {[%emt 0:00:05]} Rad8 {[%emt 0:12:22][%cal Ba8d8,Bd8d6,Bd6d2,Bd2c2][%mdl 32]} 20. Na5 {[%emt 0:02:39]} Nxa5 {[%emt 0:00:12]} 21. Rxa5 {[%emt 0:00:04]} Rd6 {[%emt 0:02:30]} 22. Rxe5 {[%emt 0:06:08]} (22. Nxe5 $2 {loses.} b6 23. Nxf7 Kxf7 24. Rxa6 Rxe4 $19 (24... Nxe4 $2 25. Ra7 $19)) 22... Rxe5 {[%emt 0:01:45]} 23. Nxe5 $14 {[%emt 0:00:06][%mdl 4096] Endgame. KRN-KRN} Rd2 {[%emt 0:09:05]} 24. Nc4 {[%emt 0:00:33]} Rc2 {[%emt 0:00:06]} 25. e5 {[%emt 0:00:23]} Nd5 {[%emt 0:00:36]} 26. Rd1 $1 {[%emt 0:05:57]} c6 {[%emt 0:00:27]} 27. Rd2 {[%emt 0:01:38]} Nxb4 {[%emt 0:10:49]} 28. Rd8+ {[%emt 0:05:54]} Kh7 {[%emt 0:00:06]} 29. Rd7 $1 {[%emt 0:00:07]} b5 {[%emt 0:00:26]} (29... Kg8 $142) 30. Ne3 $16 {[%emt 0:09:39][%cal Oe3c2]} ({Much worse is} 30. cxb4 Rxc4 31. Rxf7 Re4 $15 (31... Rxb4 32. Kf1 $11)) 30... Rc1+ {[%emt 0:00:11]} 31. Kh2 {[%emt 0:00:03] White is more active.} Nd5 {[%emt 0:00:40]} 32. Rxf7 {[%emt 0:09:17]} Nxe3 {[%emt 0:00:46]} (32... Kg8 $16 {is a better defense.} 33. e6 Re1) 33. fxe3 {[%emt 0:00:07] Threatens to win with e6. KR-KR} Re1 {[%emt 0:00:45] [#]} 34. Rf3 {[%emt 0:00:17] White wants to mate with e6.} Rd1 {[%emt 0:00:07] [#]} 35. Kg3 $1 {[%emt 0:00:42]} Rd8 {[%emt 0:05:54]} (35... a5 $142 36. Rf8 Rd5) 36. Kf4 $18 {[%emt 0:02:25]} Kg6 {[%emt 0:00:58]} 37. Ke4 {[%emt 0:00:05]} Re8 {[%emt 0:00:44]} 38. b4 {[%emt 0:00:03]} Re7 {[%emt 0:01:52]} 39. Rf8 {[%emt 0:00:30] Weighted Error Value: White=0.04 (flawless) /Black=0.18 (very precise) .  Mistake:       	---       	Black=3      Inaccurate:     	White=1     	Black=3      OK:         	White=10    	Black=10     Best:        	White=4     	Black=1      Strong:       	White=2     	---} 1-0

[Event "WSTCC-50 2024"]
[Site "Krakow"]
[Date "2024.07.06"]
[Round "5.7"]
[White "Kempter, Ronald"]
[Black "Fraser-Mitchell, Jeremy N"]
[Result "1-0"]
[ECO "A04"]
[WhiteElo "2204"]
[BlackElo "2036"]
[Annotator "RC"]
[PlyCount "61"]
[EventDate "2024.07.01"]
[EventType "team-tourn"]
[EventCountry "POL"]
[SourceTitle "playchess.com"]
[Source "ChessBase"]
[SourceQuality "1"]
[TimeControl "40/5400+30:1800+30"]

1. Nf3 {[%emt 0:00:04]} d6 {[%emt 0:00:05]} 2. d4 {[%emt 0:02:06]} g6 {[%emt 0:00:06]} 3. g3 {[%emt 0:00:37]} f5 {[%emt 0:00:13]} 4. Bg2 {[%emt 0:00:24]} Nf6 {[%emt 0:00:08]} 5. O-O {[%emt 0:01:03]} Bg7 {[%emt 0:00:03]} 6. b3 {[%emt 0:00:10]} O-O {[%emt 0:00:22]} 7. Bb2 {[%emt 0:00:07]} c6 {[%emt 0:05:06]} 8. Nbd2 {[%emt 0:01:42]} Na6 {[%emt 0:01:11]} 9. Re1 {[%emt 0:01:24]} Nc7 {[%emt 0:19:29]} 10. e4 {[%emt 0:06:34]} Nxe4 {[%emt 0:00:14]} 11. Nxe4 {[%emt 0:00:35]} fxe4 {[%emt 0:00:05]} 12. Rxe4 {[%emt 0:00:47]} Bf5 {[%emt 0:00:19]} 13. Re1 {[%emt 0:02:13]} Qd7 {[%emt 0:01:44]} 14. c4 {[%emt 0:21:33]} Rae8 {[%emt 0:02:24]} 15. Qd2 {[%emt 0:04:56]} Bg4 {[%emt 0:13:06]} 16. Ng5 {[%emt 0:05:18]} Bh6 {[%emt 0:11:12]} 17. h4 {[%emt 0:02:38]} Ne6 {[%emt 0:39:31]} 18. d5 {[%emt 0:21:02]} Nxg5 {[%emt 0:00:42]} 19. hxg5 {[%emt 0:00:33]} Bg7 {[%emt 0:00:08]} 20. Bxg7 {[%emt 0:01:44]} Kxg7 {[%emt 0:00:05]} 21. Qd4+ {[%emt 0:07:30]} Kg8 {[%emt 0:00:05]} 22. dxc6 {[%emt 0:03:58]} bxc6 {[%emt 0:00:02]} 23. Bxc6 {[%emt 0:01:04]} Qxc6 {[%emt 0:00:03]} 24. Qxg4 {[%emt 0:00:04]} Qc5 {[%emt 0:00:19]} 25. Qe6+ {[%emt 0:02:53]} Kg7 {[%emt 0:00:01]} 26. Qe3 {[%emt 0:00:05]} Qf5 {[%emt 0:00:17]} 27. Rad1 {[%emt 0:01:43]} Qd7 {[%emt 0:04:11]} 28. Qd4+ {[%emt 0:05:01]} Kg8 {[%emt 0:00:17]} 29. Qd5+ {[%emt 0:00:39]} Kg7 {[%emt 0:00:08]} 30. c5 {[%emt 0:01:24]} Rf5 {[%emt 0:03:21]} 31. Qd4+ {[%emt 0:00:44]} 1-0

[Event "WSTCC-50 2024"]
[Site "Krakow"]
[Date "2024.07.06"]
[Round "5.7"]
[White "Fox, Anthony"]
[Black "Santanna, Paulo"]
[Result "1/2-1/2"]
[ECO "B23"]
[WhiteElo "1909"]
[BlackElo "2020"]
[Annotator "RC"]
[PlyCount "130"]
[EventDate "2024.07.01"]
[EventType "team-tourn"]
[EventCountry "POL"]
[SourceTitle "playchess.com"]
[Source "ChessBase"]
[SourceQuality "1"]
[TimeControl "40/5400+30:1800+30"]

1. e4 {[%emt 0:00:04]} c5 {[%emt 0:00:09]} 2. Nc3 {[%emt 0:00:22]} a6 {[%emt 0:00:18]} 3. a4 {[%emt 0:00:29]} e6 {[%emt 0:00:29]} 4. Nge2 {[%emt 0:05:58]} Nc6 {[%emt 0:01:08]} 5. g3 {[%emt 0:01:09]} Be7 {[%emt 0:06:38]} 6. Bg2 {[%emt 0:00:23]} Nf6 {[%emt 0:05:44]} 7. O-O {[%emt 0:00:32]} O-O {[%emt 0:02:12]} 8. h3 {[%emt 0:03:58]} d6 {[%emt 0:04:11]} 9. d3 {[%emt 0:04:19]} Qc7 {[%emt 0:00:55]} 10. Be3 {[%emt 0:03:31]} Nd7 {[%emt 0:07:10]} 11. f4 {[%emt 0:01:31]} Bf6 {[%emt 0:04:51]} 12. Qd2 {[%emt 0:03:21]} Nd4 {[%emt 0:03:41]} 13. Nd1 {[%emt 0:01:12]} Rb8 {[%emt 0:05:34]} 14. Nc1 {[%emt 0:01:00]} b5 {[%emt 0:00:56]} 15. c3 {[%emt 0:02:04]} Nc6 {[%emt 0:00:39]} 16. axb5 {[%emt 0:07:06]} axb5 {[%emt 0:00:57]} 17. g4 {[%emt 0:02:32]} g6 {[%emt 0:07:45]} 18. Bf2 {[%emt 0:10:15]} Bb7 {[%emt 0:03:45]} 19. Ne3 {[%emt 0:13:54]} Ra8 {[%emt 0:02:24]} 20. Ne2 {[%emt 0:00:43]} Ne7 {[%emt 0:03:18]} 21. d4 {[%emt 0:02:40]} Bg7 {[%emt 0:00:45]} 22. e5 {[%emt 0:02:58]} Bxg2 {[%emt 0:01:01]} 23. Kxg2 {[%emt 0:01:58]} f6 {[%emt 0:06:29]} 24. exd6 {[%emt 0:04:19]} Qxd6 {[%emt 0:00:33]} 25. Bg3 {[%emt 0:06:33]} f5 {[%emt 0:02:07]} 26. g5 {[%emt 0:02:15]} Nb6 {[%emt 0:03:19]} 27. Rad1 {[%emt 0:01:20]} Rfd8 {[%emt 0:01:13]} 28. Qc1 {[%emt 0:03:05]} Qc6+ {[%emt 0:01:30]} 29. Kh2 {[%emt 0:01:13]} cxd4 {[%emt 0:01:44]} 30. Nxd4 {[%emt 0:04:50]} Bxd4 {[%emt 0:03:05]} 31. Rxd4 {[%emt 0:00:34]} Rxd4 {[%emt 0:00:38]} 32. cxd4 {[%emt 0:00:07]} Qxc1 {[%emt 0:02:53]} 33. Rxc1 {[%emt 0:00:10]} Ra2 {[%emt 0:00:57]} 34. Rc2 {[%emt 0:01:39]} Ned5 {[%emt 0:01:45]} 35. b3 {[%emt 0:03:19]} Rxc2+ {[%emt 0:05:13]} 36. Nxc2 {[%emt 0:00:10]} Nc3 {[%emt 0:00:36]} 37. Kg2 {[%emt 0:01:26]} Nbd5 {[%emt 0:00:28]} 38. Kf3 {[%emt 0:00:33]} Kf7 {[%emt 0:01:17]} 39. Be1 {[%emt 0:00:53]} Ne4 {[%emt 0:02:08]} 40. Na3 {[%emt 0:02:27]} Nd6 {[%emt 0:00:15]} 41. Nc2 {[%emt 0:31:00]} Ke8 {[%emt 0:30:47]} 42. Bb4 {[%emt 0:00:00]} Ne4 {[%emt 0:00:00]} 43. Be1 {[%emt 0:00:00]} Kd7 {[%emt 0:00:00]} 44. Na3 {[%emt 0:00:00]} Kc6 {[%emt 0:00:00]} 45. Nc2 {[%emt 0:00:00]} Nd6 {[%emt 0:00:00]} 46. Bb4 {[%emt 0:00:00]} Ne8 {[%emt 0:00:00]} 47. Bf8 {[%emt 0:00:00]} Nec7 {[%emt 0:00:00]} 48. Bb4 {[%emt 0:00:00]} Na6 {[%emt 0:00:00]} 49. Bd2 {[%emt 0:00:00]} b4 {[%emt 0:00:00]} 50. h4 {[%emt 0:00:00]} Kb5 {[%emt 0:00:00]} 51. Ke2 {[%emt 0:00:00]} Nb8 {[%emt 0:00:00]} 52. Kd3 {[%emt 0:00:00]} Nc6 {[%emt 0:00:00]} 53. Ne1 {[%emt 0:00:00]} Na5 {[%emt 0:00:00]} 54. Kc2 {[%emt 0:00:00]} Nc6 {[%emt 0:00:00]} 55. Kd3 {[%emt 0:00:00]} Nb6 {[%emt 0:00:00]} 56. Nf3 {[%emt 0:00:00]} Nc8 {[%emt 0:00:00]} 57. Ne1 {[%emt 0:00:00]} Nd6 {[%emt 0:00:00]} 58. Nf3 {[%emt 0:00:00]} Ne4 {[%emt 0:00:00]} 59. Bc1 {[%emt 0:00:53]} Kb6 {[%emt 0:00:00]} 60. Be3 {[%emt 0:00:12]} Kc7 {[%emt 0:00:00]} 61. Kc4 {[%emt 0:02:02]} Nd6+ {[%emt 0:00:00]} 62. Kc5 {[%emt 0:01:23]} Ne4+ {[%emt 0:00:00]} 63. Kb5 {[%emt 0:00:31]} Nc3+ {[%emt 0:00:00]} 64. Kc5 {[%emt 0:00:54]} Nd5 65. Bd2 Na5 1/2-1/2

[Event "WSTCC-50 2024"]
[Site "Krakow"]
[Date "2024.07.06"]
[Round "5.8"]
[White "Davies, Nigel R"]
[Black "Novikov, Igor"]
[Result "1/2-1/2"]
[ECO "A46"]
[WhiteElo "2325"]
[BlackElo "2509"]
[Annotator "TA"]
[PlyCount "52"]
[EventDate "2024.07.01"]
[EventType "team-tourn"]
[EventCountry "POL"]
[SourceTitle "playchess.com"]
[Source "ChessBase"]
[SourceQuality "1"]
[TimeControl "40/5400+30:1800+30"]

{[%evp 24,52,0,0,0,0,-4,-16,0,0,7,0,8,6,7,0,0,0,0,0,0,0,0,0,0,0,0,8,11,9,9]} 1. d4 {[%emt 0:00:14]} Nf6 {[%emt 0:00:34]} 2. Nf3 {[%emt 0:00:19]} d5 {[%emt 0:00:15]} 3. c4 {[%emt 0:00:10]} e6 {[%emt 0:00:12]} 4. cxd5 {[%emt 0:00:15]} exd5 {[%emt 0:00:13]} 5. Nc3 {[%emt 0:00:16]} c6 {[%emt 0:00:31]} 6. Bf4 {[%emt 0:00:27]} Bf5 {[%emt 0:02:10]} 7. e3 {[%emt 0:00:16]} Nbd7 {[%emt 0:02:53]} 8. Bd3 {[%emt 0:16:57]} Bxd3 {[%emt 0:01:01]} 9. Qxd3 {[%emt 0:00:07]} Be7 {[%emt 0:00:38]} 10. h3 {[%emt 0:01:10]} O-O {[%emt 0:02:03]} 11. O-O {[%emt 0:00:14]} Re8 {[%emt 0:03:20]} 12. Rab1 {[%emt 0:02:42]} a5 {[%emt 0:00:52]} 13. Qc2 {[%emt 0:04:18] The position is equal.} Nb6 {[%emt 0:07:01]} 14. Ne5 {[%emt 0:11:00]} Bd6 {[%emt 0:03:47]} 15. b3 {[%emt 0:05:33]} Qe7 {[%emt 0:05:27]} 16. Rfe1 {[%emt 0:01:13]} Nfd7 {[%emt 0:09:45]} 17. Nxd7 {[%emt 0:01:44]} Nxd7 {[%emt 0:01:31]} 18. Bxd6 {[%emt 0:00:23]} Qxd6 {[%emt 0:00:04]} 19. Qb2 {[%emt 0:08:53]} Nf6 {[%emt 0:10:42]} 20. b4 {[%emt 0:00:22]} axb4 {[%emt 0:01:43]} 21. Qxb4 {[%emt 0:00:08]} Qxb4 {[%emt 0:00:11]} 22. Rxb4 {[%emt 0:00:07]} Ra3 {[%emt 0:01:38]} 23. Rc1 {[%emt 0:01:02]} Re7 {[%emt 0:06:40]} 24. Ra4 {[%emt 0:02:58]} Rxa4 {[%emt 0:00:12]} 25. Nxa4 {[%emt 0:00:06]} Ne4 {[%emt 0:01:12]} 26. Nc5 {[%emt 0:00:22]} Nxc5 {[%emt 0:01:39] An uneventful encounter.   Weighted Error Value: White=0.03 (flawless) /Black=0.03 (flawless) .  OK:         	White=6     	Black=7} 1/2-1/2